fUSD/lending_fUSD_20251112
["ID","MTS","AMOUNT","RATE_DAILY","PERIOD"]
[393691460,1762927869565,-500.0,0.00038356,20]
[393691461,1762927869575,-1197.91,0.00038356,20]
[393691462,1762927869584,-500.0,0.00038356,20]
[393691463,1762927869594,-1197.91,0.00038356,20]
[393691464,1762927869605,-500.0,0.00038356,20]
[393691465,1762927869615,-1197.91,0.00038356,20]
[393691466,1762927869624,-500.0,0.00038356,20]
[393691467,1762927869635,-1197.91,0.00038356,20]
[393691468,1762927869645,-500.0,0.00038356,20]
[393691469,1762927869655,-500.0,0.00038356,20]
[393691470,1762927869664,-500.0,0.00038356,20]
[393691471,1762927869674,-500.0,0.00038356,20]
[393691472,1762927869684,-500.0,0.00038356,20]
[393691473,1762927869694,-500.0,0.00038356,20]
[393691474,1762927869704,-500.0,0.00038356,20]
[393691475,1762927869713,-500.0,0.00038356,20]
[393691476,1762927869723,-500.0,0.00038356,20]
[393691477,1762927869733,-500.0,0.00038356,20]
[393691478,1762927869742,-500.0,0.00038356,20]
[393691479,1762927869751,-500.0,0.00038356,20]
[393691480,1762927869761,-500.0,0.00038356,20]
[393691481,1762927869771,-500.0,0.00038356,20]
[393691482,1762927869781,-500.0,0.00038356,20]
[393691483,1762927869791,-500.0,0.00038356,20]
[393691484,1762927869800,-500.0,0.00038356,20]
[393691485,1762927869810,-500.0,0.00038356,20]
[393691486,1762927869819,-500.0,0.00038356,20]
[393691487,1762927869828,-500.0,0.00038356,20]
[393691488,1762927869837,-500.0,0.00038356,20]
[393691489,1762927869846,-500.0,0.00038356,20]
[393691490,1762927869856,-500.0,0.00038356,20]
[393691491,1762927869865,-631.69925096,0.00038356,20]
[393691492,1762927869874,-500.0,0.00038356,20]
[393691493,1762927869884,-500.0,0.00038356,20]
[393691494,1762927869893,-500.0,0.00038356,20]
[393691495,1762927869903,-500.0,0.00038356,20]
[393691496,1762927869912,-500.0,0.00038356,20]
[393691497,1762927869921,-151.50858559,0.00038356,20]
[393691498,1762927869931,-528.22834509,0.00038356,20]
[393691499,1762927869940,-500.0,0.00038356,20]
[393691500,1762927869949,-500.0,0.00038356,20]
[393691501,1762927869959,-500.0,0.00038356,20]
[393691502,1762927869968,-500.0,0.00038356,20]
[393691503,1762927869977,-500.0,0.00038356,120]
[393691504,1762927869986,-500.0,0.00038356,20]
[393691505,1762927869996,-500.0,0.00038356,20]
[393691506,1762927870006,-500.0,0.00038356,120]
[393691507,1762927870015,-500.0,0.00038356,20]
[393691508,1762927870025,-500.0,0.00038356,120]
[393691509,1762927870035,-500.0,0.00038356,20]
[393691510,1762927870045,-500.0,0.00038356,20]
[393691511,1762927870055,-500.0,0.00038356,120]
[393691512,1762927870065,-500.0,0.00038356,20]
[393691513,1762927870075,-500.0,0.00038356,20]
[393691514,1762927870084,-500.0,0.00038356,120]
[393691515,1762927870093,-500.0,0.00038356,20]
[393691516,1762927870103,-500.0,0.00038356,20]
[393691517,1762927870112,-500.0,0.00038356,120]
[393691518,1762927870122,-500.0,0.00038356,20]
[393691519,1762927870131,-500.0,0.00038356,20]
[393691520,1762927870141,-500.0,0.00038356,20]
[393691521,1762927870150,-500.0,0.00038356,120]
[393691522,1762927870159,-500.0,0.00038356,20]
[393691523,1762927870169,-500.0,0.00038356,20]
[393691524,1762927870178,-500.0,0.00038356,20]
[393691525,1762927870187,-500.0,0.00038356,120]
[393691526,1762927870196,-500.0,0.00038356,20]
[393691527,1762927870206,-500.0,0.00038356,120]
[393691528,1762927870215,-500.0,0.00038356,20]
[393691529,1762927870224,-500.0,0.00038356,20]
[393691530,1762927870233,-500.0,0.00038356,120]
[393691531,1762927870242,-500.0,0.00038356,20]
[393691532,1762927870251,-500.0,0.00038356,20]
[393691533,1762927870260,-500.0,0.00038356,120]
[393691534,1762927870269,-500.0,0.00038356,20]
[393691535,1762927870278,-500.0,0.00038356,20]
[393691536,1762927870288,-500.0,0.00038356,20]
[393691537,1762927870302,-500.0,0.00038356,20]
[393691538,1762927870311,-500.0,0.00038356,20]
[393691539,1762927870320,-401.63169683,0.00038356,20]
[393691540,1762927870329,-500.0,0.00038356,20]
[393691541,1762927870340,-500.0,0.00038356,20]
[393691542,1762927870350,-500.0,0.00038356,20]
[393691543,1762927870359,-500.0,0.00038356,20]
[393691544,1762927870368,-500.0,0.00038356,20]
[393691545,1762927870379,-540.05,0.00038356,20]
[393691546,1762927870388,-540.05,0.00038356,20]
[393691547,1762927870397,-540.05,0.00038356,20]
[393691548,1762927870406,-540.05,0.00038356,20]
[393691549,1762927870415,-540.05,0.00038356,20]
[393691550,1762927870424,-500.0,0.00038356,20]
[393691551,1762927870433,-500.0,0.00038356,20]
[393691552,1762927870442,-500.0,0.00038356,20]
[393691553,1762927870451,-500.0,0.00038356,20]
[393691554,1762927870462,-500.0,0.00038356,20]
[393691555,1762927870474,-500.0,0.00038356,20]
[393691556,1762927870484,-500.0,0.00038356,20]
[393691557,1762927870493,-500.0,0.00038356,20]
[393691558,1762927870503,-500.0,0.00038356,20]
[393691559,1762927870512,-500.0,0.00038356,20]
[393691560,1762927870521,-500.0,0.00038356,20]
[393691561,1762927870531,-500.0,0.00038356,20]
[393691562,1762927870541,-500.0,0.00038356,20]
[393691563,1762927870549,-500.0,0.00038356,20]
[393691564,1762927870559,-500.0,0.00038356,20]
[393691565,1762927870568,-412.37430842,0.00038356,20]
[393691566,1762927870577,-500.0,0.00038356,20]
[393691567,1762927870586,-500.0,0.00038356,20]
[393691568,1762927870595,-217.14346089,0.00038356,20]
[393691569,1762927870604,-500.0,0.00038356,20]
[393691570,1762927870614,-500.0,0.00038356,20]
[393691571,1762927870623,-500.0,0.00038356,20]
[393691572,1762927870632,-500.0,0.00038356,20]
[393691573,1762927870642,-500.0,0.00038356,20]
[393691574,1762927870651,-500.0,0.00038356,20]
[393691575,1762927870660,-500.0,0.00038356,20]
[393691576,1762927870670,-500.0,0.00038356,20]
[393691577,1762927870679,-500.0,0.00038356,20]
[393691578,1762927870688,-500.0,0.00038356,20]
[393691579,1762927870698,-500.0,0.00038356,20]
[393691580,1762927870707,-294.75802009,0.00038356,20]
[393691581,1762927870716,-500.0,0.00038356,20]
[393691582,1762927870726,-500.0,0.00038356,20]
[393691583,1762927870735,-500.0,0.00038356,20]
[393691584,1762927870744,-500.0,0.00038356,20]
[393691585,1762927870754,-500.0,0.00038356,20]
[393691586,1762927870763,-500.0,0.00038356,20]
[393691587,1762927870772,-500.0,0.00038356,20]
[393691588,1762927870781,-500.0,0.00038356,20]
[393691589,1762927870791,-531.04805294,0.00038356,20]
[393691590,1762927870800,-500.0,0.00038356,20]
[393691591,1762927870811,-500.0,0.00038356,20]
[393691592,1762927870820,-395.44283187,0.00038356,20]
[393691593,1762927870830,-500.0,0.00038356,20]
[393691594,1762927870839,-500.0,0.00038356,20]
[393691595,1762927870848,-500.0,0.00038356,20]
[393691596,1762927870858,-500.0,0.00038356,20]
[393691597,1762927870867,-500.0,0.00038356,20]
[393691598,1762927870876,-500.0,0.00038356,20]
[393691599,1762927870885,-500.0,0.00038356,20]
[393691600,1762927870894,-500.0,0.00038356,20]
[393691601,1762927870903,-500.0,0.00038356,20]
[393691602,1762927870912,-540.0,0.00038356,20]
[393691603,1762927870921,-500.0,0.00038356,20]
[393691604,1762927870931,-500.0,0.00038356,20]
[393691605,1762927870940,-593.57033315,0.00038356,20]
[393691606,1762927870948,-500.0,0.00038356,20]
[393691607,1762927870958,-500.0,0.00038356,20]
[393691608,1762927870968,-500.0,0.00038356,20]
[393691609,1762927870978,-500.0,0.00038356,20]
[393691610,1762927870988,-500.0,0.00038356,20]
[393691611,1762927870997,-564.73539834,0.00038356,20]
[393691612,1762927871007,-500.0,0.00038356,20]
[393691613,1762927871016,-500.0,0.00038356,20]
[393691614,1762927871025,-500.0,0.00038356,20]
[393691615,1762927871034,-500.0,0.00038356,20]
[393691616,1762927871043,-500.0,0.00038356,20]
[393691617,1762927871052,-500.0,0.00038356,20]
[393691618,1762927871062,-500.0,0.00038356,20]
[393691619,1762927871071,-500.0,0.00038356,20]
[393691620,1762927871080,-500.0,0.00038356,20]
[393691621,1762927871089,-459.42928589,0.00038356,20]
[393691622,1762927871098,-500.0,0.00038356,20]
[393691623,1762927871107,-192.6289326,0.00038356,20]
[393691624,1762927871116,-500.0,0.00038356,20]
[393691625,1762927871125,-500.0,0.00038356,20]
[393691626,1762927871135,-500.0,0.00038356,20]
[393691627,1762927871144,-500.0,0.00038356,20]
[393691628,1762927871154,-500.0,0.00038356,20]
[393691629,1762927871163,-500.0,0.00038356,20]
[393691630,1762927871172,-497.14357762,0.00038356,20]
[393691631,1762927871181,-500.0,0.00038356,20]
[393691632,1762927871191,-500.0,0.00038356,20]
[393691633,1762927871200,-500.0,0.00038356,20]
[393691634,1762927871209,-500.0,0.00038356,20]
[393691635,1762927871218,-500.0,0.00038356,20]
[393691636,1762927871227,-500.0,0.00038356,20]
[393691637,1762927871236,-500.0,0.00038356,20]
[393691638,1762927871245,-443.57323537,0.00038356,20]
[393691639,1762927871254,-500.0,0.00038356,2]
[393691640,1762927871263,-500.0,0.00038356,2]
[393691641,1762927871272,-500.0,0.00038356,2]
[393691642,1762927871282,-500.0,0.00038356,2]
[393691643,1762927871292,-500.0,0.00038356,2]
[393691644,1762927871303,-500.0,0.00038356,20]
[393691645,1762927871313,-500.0,0.00038356,2]
[393691646,1762927871322,-561.38696738,0.00038356,20]
[393691647,1762927871332,-500.0,0.00038356,2]
[393691648,1762927871343,-500.0,0.00038356,2]
[393691649,1762927871352,-500.0,0.00038356,2]
[393691650,1762927871361,-500.0,0.00038356,2]
[393691651,1762927871371,-500.0,0.00038356,2]
[393691652,1762927871380,-500.0,0.00038356,20]
[393691653,1762927871391,-500.0,0.00038356,20]
[393691654,1762927871401,-500.0,0.00038356,20]
[393691655,1762927871410,-500.0,0.00038356,20]
[393691656,1762927871420,-500.0,0.00038356,20]
[393691657,1762927871429,-500.0,0.00038356,20]
[393691658,1762927871439,-500.0,0.00038356,20]
[393691659,1762927871448,-500.0,0.00038356,20]
[393691660,1762927871458,-500.0,0.00038356,20]
[393691661,1762927871467,-616.57252959,0.00038356,20]
[393691662,1762927871476,-500.0,0.00038356,20]
[393691663,1762927871485,-500.0,0.00038356,20]
[393691664,1762927871495,-500.0,0.00038356,20]
[393691665,1762927871504,-500.0,0.00038356,20]
[393691666,1762927871513,-500.0,0.00038356,20]
[393691667,1762927871523,-500.0,0.00038356,20]
[393691668,1762927871533,-500.0,0.00038356,20]
[393691669,1762927871542,-500.0,0.00038356,20]
[393691670,1762927871551,-500.0,0.00038356,20]
[393691671,1762927871560,-500.0,0.00038356,20]
[393691672,1762927871570,-500.0,0.00038356,20]
[393691673,1762927871579,-500.0,0.00038356,20]
[393691674,1762927871588,-500.0,0.00038356,20]
[393691675,1762927871597,-500.0,0.00038356,20]
[393691676,1762927871606,-500.0,0.00038356,20]
[393691677,1762927871615,-527.73,0.00038356,20]
[393691678,1762927871624,-500.0,0.00038356,20]
[393691679,1762927871634,-527.73,0.00038356,20]
[393691680,1762927871643,-536.69784407,0.00038356,20]
[393691681,1762927871653,-527.73,0.00038356,20]
[393691682,1762927871662,-527.73,0.00038356,20]
[393691683,1762927871671,-500.0,0.00038356,20]
[393691684,1762927871681,-527.73,0.00038356,20]
[393691685,1762927871690,-500.0,0.00038356,20]
[393691686,1762927871699,-527.73,0.00038356,20]
[393691687,1762927871708,-500.0,0.00038356,20]
[393691688,1762927871718,-527.73,0.00038356,20]
[393691689,1762927871727,-500.0,0.00038356,20]
[393691690,1762927871736,-500.0,0.00038356,20]
[393691691,1762927871745,-527.73,0.00038356,20]
[393691692,1762927871755,-500.0,0.00038356,20]
[393691693,1762927871764,-500.0,0.00038356,20]
[393691694,1762927871774,-527.73,0.00038356,20]
[393691695,1762927871784,-500.0,0.00038356,20]
[393691696,1762927871793,-500.0,0.00038356,20]
[393691697,1762927871802,-527.73,0.00038356,20]
[393691698,1762927871811,-425.07735057,0.00038356,20]
[393691700,1762927872405,-74.92264943,0.00038356,20]
[393691701,1762927872415,-458.4020301,0.00038356,20]
[393691702,1762927872473,-41.5979699,0.00038356,20]
[393691703,1762927872483,-500.0,0.00038356,20]
[393691704,1762927872494,-500.0,0.00038356,20]
[393691705,1762927872505,-500.0,0.00038356,20]
[393691706,1762927872515,-500.0,0.00038356,20]
[393691707,1762927872525,-500.0,0.00038356,20]
[393691708,1762927872536,-500.0,0.00038356,20]
[393691709,1762927872545,-199.31263062,0.00038356,20]
[393691710,1762927872555,-500.0,0.00038356,20]
[393691711,1762927872564,-500.0,0.00038356,20]
[393691712,1762927872574,-185.18661928,0.00038356,20]
[393691713,1762927872587,-412.94781698,0.00038356,20]
[393691714,1762927872597,-413.10218202,0.00038356,20]
[393691715,1762927872633,-86.89781798,0.00038356,20]
[393691716,1762927872642,-500.0,0.00038356,20]
[393691717,1762927872652,-500.0,0.00038356,20]
[393691718,1762927872662,-500.0,0.00038356,20]
[393691719,1762927872671,-500.0,0.00038356,20]
[393691720,1762927872680,-500.0,0.00038356,20]
[393691721,1762927872690,-500.0,0.00038356,20]
[393691722,1762927872699,-500.0,0.00038356,20]
[393691723,1762927872709,-500.0,0.00038356,20]
[393691724,1762927872718,-500.0,0.00038356,20]
[393691725,1762927872727,-500.0,0.00038356,20]
[393691726,1762927872737,-500.0,0.00038356,20]
[393691727,1762927872746,-500.0,0.00038356,20]
[393691728,1762927872756,-500.0,0.00038356,20]
[393691729,1762927872765,-500.0,0.00038356,20]
[393691730,1762927872774,-500.0,0.00038356,20]
[393691731,1762927872783,-500.0,0.00038356,20]
[393691732,1762927872792,-500.0,0.00038356,20]
[393691733,1762927872801,-640.07138649,0.00038356,20]
[393691734,1762927872812,-500.0,0.00038356,20]
[393691735,1762927872822,-500.0,0.00038356,20]
[393691736,1762927872831,-500.0,0.00038356,20]
[393691737,1762927872841,-500.0,0.00038356,20]
[393691738,1762927872850,-500.0,0.00038356,20]
[393691739,1762927872859,-500.0,0.00038356,20]
[393691740,1762927872868,-500.0,0.00038356,20]
[393691741,1762927872878,-500.0,0.00038356,20]
[393691742,1762927872887,-559.61313235,0.00038356,20]
[393691743,1762927872896,-500.0,0.00038356,20]
[393691744,1762927872905,-500.0,0.00038356,20]
[393691745,1762927872914,-500.0,0.00038356,20]
[393691746,1762927872923,-500.0,0.00038356,20]
[393691747,1762927872932,-500.0,0.00038356,20]
[393691748,1762927872941,-500.0,0.00038356,20]
[393691749,1762927872950,-500.0,0.00038356,20]
[393691750,1762927872960,-500.0,0.00038356,20]
[393691751,1762927872969,-500.0,0.00038356,20]
[393691752,1762927872978,-500.0,0.00038356,20]
[393691753,1762927872987,-309.78159845,0.00038356,20]
[393691754,1762927872996,-500.0,0.00038356,20]
[393691755,1762927873005,-500.0,0.00038356,20]
[393691756,1762927873014,-250.06787691,0.00038356,20]
[393691757,1762927873024,-500.0,0.00038356,2]
[393691758,1762927873033,-500.0,0.00038356,20]
[393691759,1762927873042,-500.0,0.00038356,2]
[393691760,1762927873051,-483.19892568,0.00038356,20]
[393691764,1762927985732,200.0,0.00026986,120]
[393691774,1762928781446,167.01,0.00018567,2]
[393691816,1762929032010,-10392.0,0.00022,4]
[393691817,1762929032020,-167.01,0.00022135,2]
[393691818,1762929032029,-167.01,0.00025703,2]
[393691819,1762929032039,-7703.53931349,0.00025879,2]
[393691820,1762929032048,-593.78635409,0.0002599,2]
[393691821,1762929032057,-167.01,0.0002927,2]
[393691822,1762929032066,-3392.68937531,0.000295,7]
[393691828,1762929037971,-652.9748742,0.00022035,2]
[393691829,1762929037982,-8233.83017982,0.000295,7]
[393691830,1762929037992,-503.0,0.00029616,2]
[393691831,1762929038004,-2324.53916918,0.0003084,2]
[393691889,1762929040109,-253.818939,0.0003084,2]
[393691890,1762929040118,-368.0,0.00030949,2]
[393691891,1762929040129,-66494.79552558,0.0003095,2]
[393691892,1762929040139,-1468.39086634,0.00032,120]
[393691893,1762929040149,-418.0,0.00032,120]
[393691894,1762929040158,-167.01,0.00032838,2]
[393691895,1762929040168,-319.98014903,0.00033,2]
[393691896,1762929040177,-218.6,0.00033636,2]
[393691897,1762929040187,-152.0,0.00033776,3]
[393691898,1762929040197,-355.58,0.00033792,2]
[393691899,1762929040208,-478.56668374,0.00034584,2]
[393691900,1762929040218,-1729.08,0.00034671,2]
[393691901,1762929040229,-152.0,0.00034745,4]
[393691902,1762929040240,-181.67660261,0.000349,120]
[393691903,1762929040250,-161.19045101,0.00035,14]
[393691904,1762929040259,-355.58,0.00035059,2]
[393691905,1762929040269,-200.0,0.000351,7]
[393691906,1762929040278,-165.0,0.00035167,120]
[393691907,1762929040288,-500.0,0.00035303,7]
[393691908,1762929040297,-274.68975984,0.00035303,7]
[393691909,1762929040308,-500.0,0.00035303,7]
[393691910,1762929040318,-590.92093673,0.00035303,7]
[393691911,1762929040328,-500.0,0.00035303,7]
[393691912,1762929040337,-500.0,0.00035303,7]
[393691913,1762929040346,-500.0,0.00035303,7]
[393691914,1762929040355,-590.92093673,0.00035303,7]
[393691915,1762929040364,-562.43734683,0.00035303,7]
[393691916,1762929040373,-500.0,0.00035303,7]
[393691917,1762929040383,-590.92093673,0.00035303,7]
[393691918,1762929040392,-299.1950919,0.00035303,7]
[393691919,1762929040402,-500.0,0.00035303,7]
[393691920,1762929040412,-314.85214712,0.00035303,7]
[393691921,1762929040421,-590.92093673,0.00035303,7]
[393691922,1762929040431,-500.0,0.00035303,7]
[393691923,1762929040441,-590.92093673,0.00035303,7]
[393691924,1762929040451,-500.0,0.00035303,7]
[393691926,1762929040460,-500.0,0.00035303,7]
[393691928,1762929040469,-590.92093673,0.00035303,7]
[393691929,1762929040479,-500.0,0.00035303,7]
[393691932,1762929040489,-590.92093673,0.00035303,7]
[393691934,1762929040499,-500.0,0.00035303,7]
[393691935,1762929040509,-590.92093673,0.00035303,7]
[393691936,1762929040519,-590.92093673,0.00035303,7]
[393691937,1762929040528,-500.0,0.00035303,7]
[393691938,1762929040537,-590.92093673,0.00035303,7]
[393691939,1762929040546,-500.0,0.00035303,7]
[393691940,1762929040555,-590.92093673,0.00035303,7]
[393691941,1762929040564,-500.0,0.00035303,7]
[393691942,1762929040573,-590.92093673,0.00035303,7]
[393691943,1762929040583,-500.0,0.00035303,7]
[393691945,1762929040592,-590.92093673,0.00035303,7]
[393691947,1762929040601,-590.92093673,0.00035303,7]
[393691949,1762929040611,-590.92093673,0.00035303,7]
[393691950,1762929040621,-500.0,0.00035303,7]
[393691951,1762929040630,-590.92093673,0.00035303,7]
[393691952,1762929040640,-590.92093673,0.00035303,7]
[393691953,1762929040650,-590.92093673,0.00035303,7]
[393691954,1762929040663,-590.92093673,0.00035303,7]
[393691955,1762929040673,-590.92093673,0.00035303,7]
[393691956,1762929040683,-590.92093673,0.00035303,7]
[393691957,1762929040693,-590.92093673,0.00035303,7]
[393691958,1762929040704,-590.92093673,0.00035303,7]
[393691959,1762929040715,-590.92093673,0.00035303,7]
[393691960,1762929040725,-590.92093673,0.00035303,7]
[393691961,1762929040737,-590.92093673,0.00035303,7]
[393691962,1762929040746,-590.92093673,0.00035303,7]
[393691963,1762929040756,-590.92093673,0.00035303,7]
[393691964,1762929040766,-590.92093673,0.00035303,7]
[393691965,1762929040777,-590.92093673,0.00035303,7]
[393691966,1762929040786,-590.92093673,0.00035303,7]
[393691967,1762929040795,-590.92093673,0.00035303,7]
[393691968,1762929040805,-590.92093673,0.00035303,7]
[393691969,1762929040814,-590.92093673,0.00035303,7]
[393691970,1762929040824,-590.92093673,0.00035303,7]
[393691971,1762929040834,-590.92093673,0.00035303,7]
[393691972,1762929040844,-590.92093673,0.00035303,7]
[393691973,1762929040854,-590.92093673,0.00035303,7]
[393691974,1762929040863,-590.92093673,0.00035303,7]
[393691975,1762929040873,-590.92093673,0.00035303,7]
[393691976,1762929040883,-590.92093673,0.00035303,7]
[393691977,1762929040892,-590.92093673,0.00035303,7]
[393691978,1762929040902,-590.92093673,0.00035303,7]
[393691979,1762929040912,-590.92093673,0.00035303,7]
[393691980,1762929040921,-158638.93,0.00035304,2]
[393691981,1762929040931,-168.0,0.00035616,7]
[393691982,1762929040941,-152.0,0.00035715,5]
[393691983,1762929040951,-179.20145416,0.00036,120]
[393691984,1762929040960,-182.15107752,0.00036021,2]
[393691985,1762929040969,-66538.33866894,0.000361,2]
[393691986,1762929040978,-500.0,0.00036121,30]
[393691987,1762929040988,-1000.0,0.00036128,2]
[393691988,1762929040997,-5000.0,0.00036165,2]
[393691989,1762929041006,-355.58,0.00036326,2]
[393691990,1762929041016,-167.01,0.00036406,2]
[393691991,1762929041026,-500.0,0.00036452,30]
[393691992,1762929041035,-168.0,0.00036457,2]
[393691993,1762929041044,-195.59,0.00036466,120]
[393691994,1762929041054,-500.0,0.000365,2]
[393691995,1762929041063,-482.65,0.000366,2]
[393691996,1762929041074,-152.0,0.00036684,6]
[393691997,1762929041083,-1219.65,0.00036758,30]
[393691998,1762929041091,-500.0,0.00036758,30]
[393691999,1762929041100,-152.82,0.00036774,2]
[393692000,1762929041108,-500.0,0.00036804,30]
[393692001,1762929041118,-342.33,0.0003683,120]
[393692002,1762929041128,-500.0,0.00036837,30]
[393692003,1762929041139,-500.0,0.0003686,30]
[393692004,1762929041148,-320.81,0.00036865,2]
[393692005,1762929041157,-500.0,0.00037061,30]
[393692006,1762929041166,-618.11906196,0.00037263,30]
[393692007,1762929041175,-500.0,0.00037315,30]
[393692008,1762929041185,-168.0,0.00037324,2]
[393692009,1762929041194,-350.0,0.00037366,7]
[393692010,1762929041204,-337.5,0.00037366,7]
[393692011,1762929041213,-500.0,0.000374,30]
[393692012,1762929041223,-875.964,0.00037503,48]
[393692013,1762929041233,-350.0,0.00037503,7]
[393692014,1762929041242,-337.5,0.00037503,7]
[393692015,1762929041252,-355.58,0.00037593,2]
[393692016,1762929041261,-437.75,0.00037612,2]
[393692017,1762929041271,-1207.25,0.00037612,2]
[393692018,1762929041280,-1898.27,0.00037612,2]
[393692019,1762929041289,-837.55,0.00037612,2]
[393692020,1762929041299,-350.0,0.0003764,7]
[393692021,1762929041308,-337.5,0.0003764,7]
[393692022,1762929041318,-201.0,0.00037643,2]
[393692023,1762929041328,-152.0,0.00037653,7]
[393692024,1762929041338,-500.0,0.0003767,30]
[393692025,1762929041347,-329.94,0.00037692,2]
[393692026,1762929041358,-469.89,0.00037692,2]
[393692027,1762929041368,-168.0,0.00037752,2]
[393692028,1762929041378,-337.5,0.00037777,7]
[393692029,1762929041387,-353.86,0.00037777,14]
[393692030,1762929041397,-1302.0,0.00037808,30]
[393692031,1762929041406,-168.0,0.0003783,2]
[393692032,1762929041415,-4628.27,0.00037873,2]
[393692033,1762929041424,-871.50114,0.0003797,2]
[393692034,1762929041433,-163.47,0.00037989,2]
[393692035,1762929041442,-151.963465,0.00037999,31]
[393692036,1762929041451,-151.0,0.00037999,31]
[393692037,1762929041461,-151.0,0.00037999,31]
[393692038,1762929041470,-163.884897,0.00037999,31]
[393692039,1762929041480,-163.930611,0.00037999,31]
[393692040,1762929041492,-151.0,0.00037999,31]
[393692041,1762929041504,-151.0,0.00037999,30]
[393692042,1762929041513,-190.081741,0.00037999,31]
[393692043,1762929041525,-151.0,0.00037999,31]
[393692044,1762929041534,-151.0,0.00037999,31]
[393692045,1762929041543,-290.615796,0.00037999,31]
[393692046,1762929041552,-177.615787,0.00037999,31]
[393692047,1762929041561,-151.0,0.00037999,31]
[393692048,1762929041571,-300.000016,0.00037999,31]
[393692049,1762929041580,-162.953906,0.00037999,31]
[393692050,1762929041589,-151.0,0.00037999,31]
[393692051,1762929041598,-156.726224,0.00037999,31]
[393692052,1762929041608,-171.302453,0.00037999,31]
[393692053,1762929041617,-157.327414,0.00037999,31]
[393692054,1762929041626,-185.167043,0.00037999,31]
[393692055,1762929041635,-15368.19613051,0.00038,2]
[393692056,1762929041645,-1500.0,0.00038,30]
[393692057,1762929041654,-1500.0,0.00038,30]
[393692058,1762929041666,-500.0,0.00038012,30]
[393692059,1762929041675,-755.724801,0.00038016,30]
[393692060,1762929041684,-168.0,0.00038021,2]
[393692061,1762929041694,-500.0,0.00038109,30]
[393692062,1762929041704,-513.2835,0.00038144,2]
[393692063,1762929041712,-2500.0,0.00038145,2]
[393692064,1762929041722,-546.8033,0.00038145,2]
[393692065,1762929041731,-1257.97920602,0.00038154,2]
[393692066,1762929041741,-477.21,0.00038164,2]
[393692067,1762929041750,-292.64,0.00038164,2]
[393692068,1762929041759,-1647.08014488,0.00038243,30]
[393692069,1762929041770,-195.40517967,0.00038244,15]
[393692070,1762929041779,-304.98641733,0.00038244,15]
[393692071,1762929041788,-500.0,0.00038244,15]
[393692072,1762929041797,-578.2192442,0.00038244,15]
[393692073,1762929041806,-24044.30623614,0.00038244,120]
[393692074,1762929041816,-420000.0,0.00038245,2]
[393692075,1762929041826,-161.337183,0.00038245,31]
[393692076,1762929041835,-151.0,0.00038245,31]
[393692077,1762929041844,-151.0,0.00038245,30]
[393692078,1762929041854,-151.0,0.00038245,31]
[393692079,1762929041863,-151.0,0.00038245,31]
[393692080,1762929041873,-181.8886665,0.00038254,120]
[393692081,1762929041882,-11749.9181,0.00038256,2]
[393692082,1762929041892,-1000.0,0.00038256,120]
[393692083,1762929041900,-282.6623,0.00038256,2]